Cogmind - Beta 14 @@@ ROGUE MODE // 2024.08.12 @ 23:19:18 Player: Gaffe Result: Destroyed by S-10 Pest with Light Assault Rifle Performance ------------- Evolutions (2) 1000 Regions Visited (3) 600 Robots Destroyed (11) 55 Value Destroyed (262) 262 Prototype IDs (0) 0 Alien Tech Used (0) 0 Bonus (-15) -15 TOTAL SCORE: 1902 Bonus ------- Friendly Fire -15 Cogmind --------- Core Integrity 0/550 Matter 150/300 Energy 100/100 System Corruption 0% Temperature Cool (0) Movement Core (500) Ox9 Location -8/Materials Parts ------- > --- POWER (1) -------- (None) > --- PROPULSION (3) --- (None) > --- UTILITY (5) ------ Large Storage Unit > --- WEAPON (2) ------- Assault Rifle Subdweller Shrapnel Launcher > --- INVENTORY (15) --- Subdweller Monowheel Peak State ------------ > --- POWER ------------ Subdweller Power Source > --- PROPULSION ------- Subdweller Monowheel Subdweller Monowheel Subdweller Monowheel > --- UTILITY ---------- Large Storage Unit Scrap Shield > --- WEAPON ----------- Subdweller Machine Gun Makeshift Axe > --- INVENTORY -------- Subdweller Monowheel Assault Rifle Subdweller Shrapnel Launcher [Rating: 19] Favorites ----------- Power Ion Engine Engine Ion Engine Propulsion Improved Hover Unit Wheel Subdweller Monowheel Hover Unit Improved Hover Unit Utility Terrain Scan Processor Device Terrain Scanner Storage Large Storage Unit Processor Terrain Scan Processor Protection Scrap Shield Weapon Small Laser Energy Gun Small Laser Ballistic Gun Assault Rifle Launcher Mini Grenade Launcher Slashing Weapon Makeshift Axe Build | -11 -10 -10 -8 ------- Run | Yrd Mat Sub Mat Slots Evolved 4 | . . . 4 Power . | . . . . Propulsion 1 | . . . 1 Utility 3 | . . . 3 Weapon . | . . . . Parts Attached 31 | 5 10 9 7 Power 3 | 1 1 1 . Engine 3 | 1 1 1 . Core . | . . . . Reactor . | . . . . Propulsion 12 | 2 4 4 2 Treads . | . . . . Leg . | . . . . Wheel 7 | 2 . 3 2 Hover 5 | . 4 1 . Flight . | . . . . Utility 5 | . 3 1 1 Device 1 | . 1 . . Storage 2 | . 1 . 1 Processor 1 | . 1 . . Hackware . | . . . . Protection 1 | . . 1 . Artifact . | . . . . Weapon 11 | 2 2 3 4 Energy Gun 1 | 1 . . . Energy Cannon . | . . . . Ballistic Gun 4 | 1 1 1 1 Ballistic Cannon . | . . . . Launcher 4 | . 1 1 2 Special Weapon . | . . . . Impact Weapon . | . . . . Slashing Weapon 2 | . . 1 1 Piercing Weapon . | . . . . Special Melee Weapon . | . . . . Unidentified Prototypes . | . . . . Parts Lost 10 | . 2 1 7 Power 2 | . 1 . 1 Propulsion 4 | . 1 . 3 Utility 2 | . . 1 1 Weapon 2 | . . . 2 Highest Loss Streak 6 | . 1 1 6 To Critical Strikes . | . . . . Average Slot Usage (%) 80 | . 84 88 43 Engine 11 | . 11 14 5 Wheel 9 | . 3 16 15 Hover 13 | . 17 11 . Device 7 | . 10 4 . Storage 1 | . . . 9 Processor 8 | . 11 4 . Protection 3 | . . 9 3 Energy Gun 9 | . 14 5 . Ballistic Gun 10 | . 10 14 5 Launcher 3 | . 3 3 1 Slashing Weapon 1 | . . 4 3 Peak Build Rating 19 | 5 10 16 19 Average Rating 9 | 3 8 12 10 On Entrance 7 | . 5 9 16 Naked Turns . | . . . . Heaviest Build 55 | 8 22 35 55 Greatest Support 60 | 26 26 40 60 Greatest Overweight (x) 9 | 2 1 2 9 Average Overweight (x) . | . . . 1 Largest Inventory Capacity 15 | 5 15 5 15 Average Capacity 6 | 5 5 5 15 Most Carried 5 | 3 5 5 4 Average Carried 4 | 1 4 4 3 Final Capacity 15 | 5 5 5 15 Final Carried 5 | 2 5 5 1 Class Distribution -------------------- 74% | Mutant 25% | Subdweller-Mutant Dominant Class ---------------- Mutant | -10/Materials Subdweller-Mutant | -10/Subcaves Mutant | -8/Materials Resources | -11 -10 -10 -8 ----------- Run | Yrd Mat Sub Mat Matter Collected 480 | 220 45 215 . Remotely . | . . . . Salvage Created 193 | . 46 56 91 Parts 18 | . 3 4 11 Haulers Intercepted . | . . . . Recyclers Shooed . | . . . . Parts Field Recycled . | . . . . Retrieved Matter . | . . . . Parts Self-Destructed 4 | . . 4 . Prevented . | . . . . Kills | -11 -10 -10 -8 ------- Run | Yrd Mat Sub Mat Combat Hostiles Destroyed 10 | . 2 1 7 Guns 3 | . . 1 2 AOE 7 | . 2 . 5 Classes Destroyed 5 | . 2 1 2 Worker 1 | . 1 . . Swarmer 5 | . . . 5 Grunt 2 | . 2 . . Sentry 2 | . . . 2 Subdweller 1 | . . 1 . Best Kill Streak 4 | . 3 1 4 Combat Bots Only 4 | . 2 1 4 Max Kills in Single Turn 3 | . 2 1 3 Gunslinging . | . . . . Exploded 3 | . 2 . 3 Melee . | . . . . Uniques/NPCs Destroyed . | . . . . Combat | -11 -10 -10 -8 -------- Run | Yrd Mat Sub Mat Hostile Shots Fired 188 | . 9 6 173 Missed 57 | . 3 1 53 Damage Taken 1599 | . 194 223 1182 Core 603 | . 46 6 551 Absorbed by Shields . | . . . . Core Remaining (%) 89 | 100 . 79 . Volleys Fired 30 | . 16 7 7 Largest 2 | . 2 2 2 Hottest 70 | . 70 60 70 Shots Fired 42 | . 21 9 12 Gun 34 | . 18 9 7 Cannon . | . . . . Launcher 8 | . 3 . 5 Special . | . . . . Kinetic 21 | . 2 7 12 Thermal 18 | . 16 2 . Explosive 3 | . 3 . . Electromagnetic . | . . . . Robot Hit Streak 2 | . 2 2 1 Robot Miss Streak 5 | . 5 3 4 Penetration Max . | . . . . Secondary Targets . | . . . . Shots Hit Robots 20 | . 9 4 7 Core Hits 16 | . 8 1 7 Critical Kills 1 | . . 1 . Critical Parts Destroyed . | . . . . Critical Strikes 1 | . . 1 . Destroy 1 | . . 1 . Melee Attacks 8 | . . . 8 Impact . | . . . . Slashing 8 | . . . 8 Piercing . | . . . . Sneak Attacks . | . . . . Combat Hostiles . | . . . . Follow-up Attacks . | . . . . Damage Inflicted 1044 | . 401 91 552 Guns 264 | . 112 91 61 Cannons . | . . . . Explosions 663 | . 286 . 377 Melee 114 | . . . 114 Ramming 3 | . 3 . . Kinetic 541 | . 12 91 438 Thermal 100 | . 100 . . Explosive 286 | . 286 . . Electromagnetic . | . . . . Impact . | . . . . Slashing 114 | . . . 114 Piercing . | . . . . Highest Corruption . | . . . . Average Corruption . | . . . . Corruption Purged . | . . . . Corruption Blocked . | . . . . Overload Shots . | . . . . Overflow Damage 12 | . . . 12 Projectiles . | . . . . Explosions . | . . . . Melee 12 | . . . 12 Knockbacks . | . . . . Impact . | . . . . Kinetic . | . . . . Secondary . | . . . . Self-Inflicted Damage 38 | . 1 . 37 Shots 1 | . . . 1 Rammed 1 | . 1 . . Targets Rammed 1 | . 1 . . Kicked . | . . . . Crushed . | . . . . Highest Temperature 59 | . 59 . 6 Average Temperature 36 | . 39 . 6 Received Heat Transfer 234 | . 63 18 153 Siege Activations . | . . . . Robots Corrupted . | . . . . Combat Hostiles . | . . . . Parts Fried . | . . . . Impact Corruptions . | . . . . Robots Melted . | . . . . Combat Hostiles . | . . . . Parts Melted . | . . . . Heat Transferred 225 | . 225 . . Parts Sabotaged . | . . . . Parts Stolen . | . . . . Parts Stripped . | . . . . Power Chain Reactions . | . . . . Alert | -11 -10 -10 -8 ------- Run | Yrd Mat Sub Mat Peak Influence 277 | . 134 . 277 Initial . | . . . . Average 44 | . 20 . 148 Maximum Alert Level 1 | . . . 1 Low Security (%) 94 | 100 100 . 72 Level 1 5 | . . . 27 Level 2 . | . . . . Level 3 . | . . . . Level 4 . | . . . . Level 5 . | . . . . High Security . | . . . . Max Security . | . . . . Squads Dispatched 2 | . 1 . 1 Investigation . | . . . . Extermination . | . . . . Reinforcement 2 | . 1 . 1 Assault . | . . . . Garrison . | . . . . Intercept . | . . . . Searches Triggered . | . . . . Construction Impeded . | . . . . Haulers Reinforced . | . . . . Active Scanning Responses . | . . . . Cargo Convoy Interrupts . | . . . . Stealth | -11 -10 -10 -8 --------- Run | Yrd Mat Sub Mat Distress Signals 5 | . 2 . 3 Communications Jammed . | . . . . Distress Signals . | . . . . Times Spotted 35 | . 9 12 14 Peak Tracking Total 8 | . 4 5 8 Tactical Retreats 5 | . 2 . 3 Traps | -11 -10 -10 -8 ------- Run | Yrd Mat Sub Mat Traps Triggered 3 | . 3 . . Indirectly . | . . . . Trap Hack Attempts . | . . . . Triggered . | . . . . Disarmed . | . . . . Reprogrammed . | . . . . Reused . | . . . . Traps Extracted . | . . . . Installed . | . . . . Triggered . | . . . . Machines | -11 -10 -10 -8 ---------- Run | Yrd Mat Sub Mat Machines Disabled . | . . . . Max in Single Turn . | . . . . Machines Repaired . | . . . . Machines Dismantled . | . . . . Machines Sabotaged . | . . . . Overloaded Fab Kills . | . . . . Hacking | -11 -10 -10 -8 --------- Run | Yrd Mat Sub Mat Machines Accessed 7 | . 5 . 2 Terminals 6 | . 4 . 2 Fabricators . | . . . . Repair Stations 1 | . 1 . . Recycling Units . | . . . . Scanalyzers . | . . . . Garrison Access . | . . . . Total Hacks 14 | . 12 . 2 Successful 7 | . 7 . . Failed 7 | . 5 . 2 Catastrophic 1 | . 1 . . Database Lockouts . | . . . . Manual . | . . . . Terminals 12 | . 10 . 2 Fabricators . | . . . . Repair Stations 2 | . 2 . . Recycling Units . | . . . . Scanalyzers . | . . . . Garrison Access . | . . . . Terminal Hacks 6 | . 6 . . Record 2 | . 2 . . Robot Analysis 1 | . 1 . . Alert Level 1 | . 1 . . Unreport Threat 1 | . 1 . . Locate Traps 1 | . 1 . . Fabricator Hacks . | . . . . Repair Station Hacks 1 | . 1 . . Scan Component 1 | . 1 . . Recycling Unit Hacks . | . . . . Scanalyzer . | . . . . Garrison Access Hacks . | . . . . Unauthorized Hacks . | . . . . Terminals . | . . . . Fabricators . | . . . . Repair Stations . | . . . . Recycling Units . | . . . . Scanalyzers . | . . . . Garrison Access . | . . . . Data Cores Recovered . | . . . . Used . | . . . . Hacking Detections 6 | . 4 . 2 Full Trace Events . | . . . . Feedback Events . | . . . . Feedback Blocked . | . . . . Robot Schematics Acquired . | . . . . Robots Built . | . . . . Authchips . | . . . . Time . | . . . . Total Robot Build Rating . | . . . . Part Schematics Acquired . | . . . . Parts Built . | . . . . Authchips . | . . . . Time . | . . . . Total Part Build Rating . | . . . . Parts Repaired . | . . . . Time . | . . . . Parts Recycled . | . . . . Recycled Matter . | . . . . Retrieved Matter . | . . . . Retrieved Components . | . . . . Parts Scanalyzed . | . . . . Part Schematics Acquired . | . . . . Parts Damaged . | . . . . Bothacking | -11 -10 -10 -8 ------------ Run | Yrd Mat Sub Mat Used RIF Installer . | . . . . Robots Hacked . | . . . . Non-combat . | . . . . Combat . | . . . . Robot Hacks Applied . | . . . . Relay Couplers Released . | . . . . Fabnet Peak Effective % . | . . . . Robots Rewired . | . . . . Allies Hacked . | . . . . Hacks Repelled . | . . . . Allies | -11 -10 -10 -8 -------- Run | Yrd Mat Sub Mat Total Allies . | . . . . Largest Group . | . . . . Highest-Rated Group . | . . . . Highest-Rated Ally . | . . . . Total Orders . | . . . . Ally Attacks . | . . . . Total Damage . | . . . . Kills . | . . . . Allies Corrupted . | . . . . Allies Melted . | . . . . Intel | -11 -10 -10 -8 ------- Run | Yrd Mat Sub Mat Robot Analysis Total 1 | . 1 . . Derelict Logs Recovered 1 | . . 1 . Drone Launches . | . . . . Drone Recoveries . | . . . . Exploration | -11 -10 -10 -8 ------------- Run | Yrd Mat Sub Mat Turns Passed 1727 | 35 959 496 237 Spaces Moved 1083 | 27 426 517 113 Core 32 | 8 . . 24 Treads . | . . . . Legs . | . . . . Wheels 470 | 19 120 242 89 Hover 581 | . 306 275 . Flight . | . . . . Fastest Speed 50 | 50 56 56 110 Average Speed 91 | 91 77 85 174 Slowest Speed 500 | 150 120 176 500 Overloaded Moves . | . . . . Propulsion Burnouts . | . . . . Robots Hopped . | . . . . Cave-ins Triggered . | . . . . Exploration Rate (%) 27 | 3 60 29 18 Regions Visited 3 Branch Regions 1 Pre-discovered Areas 2 | . . 2 . Known Exits Taken . | . . . . Unknown Exits Taken 3 | 1 1 1 . Scrap Searched . | . . . . Spaces Dug . | . . . . Terrain Destroyed 95 | . 22 . 73 Melee . | . . . . Projectile . | . . . . AOE 95 | . 22 . 73 Terrain Rammed . | . . . . Walls Destroyed . | . . . . Machines Disabled . | . . . . Actions | -11 -10 -10 -8 --------- Run | Yrd Mat Sub Mat Total 1770 | 35 1033 566 136 Wait 580 | . 569 11 . Move 1080 | 26 425 516 113 Hop . | . . . . Pick Up 20 | 4 7 9 . Fast Attach 8 | 3 4 1 . Attach 11 | 2 3 1 5 Detach 3 | . 1 1 1 Swap 12 | . 3 7 2 Drop 15 | . 4 11 . Fire 30 | . 16 7 7 Melee 8 | . . . 8 Ram 1 | . 1 . . Kick . | . . . . Crush . | . . . . Escape Stasis . | . . . . Rewire . | . . . . Trap . | . . . . Miscellaneous 2 | . . 2 . Route ------- -11/Scrapyard -10/Materials (discovered 4 exits: [*Mat x2] / [*Min] / [*Sub]) -10/Subcaves -8/Materials History --------- Turn | Location | Event 19 | -11/Scrapyard | Discovered new exit (range 14) 36 | -11/Scrapyard | Entered Materials 144 | -10/Materials | Discovered new exit (range 12) 155 | -10/Materials | Discovered new exit (range 15) 318 | -10/Materials | Discovered new exit (range 4) 326 | -10/Materials | Build established: Mutant 369 | -10/Materials | Discovered new exit (range 11) 995 | -10/Materials | Entered Subcaves 1063 | -10/Subcaves | Learned location of Storage (-7) 1145 | -10/Subcaves | Ambushed by swarm of Subdwellers 1295 | -10/Subcaves | Learned location of Zion (-7) 1295 | -10/Subcaves | Met a Zionite searching for "candidates" 1462 | -10/Subcaves | Build established: Subdweller-Mutant 1481 | -10/Subcaves | Discovered new exit (range 6) 1491 | -10/Subcaves | Entered Materials 1491 | -8/Materials | Evolved 4 slots: Propulsion x1, Utility x3 1649 | -8/Materials | Core integrity fell below 50% 1658 | -8/Materials | Lost 6 parts (1p3n1u1w) 1688 | -8/Materials | Core integrity fell below 20% 1728 | -8/Materials | Destroyed by S-10 Pest with Light Assault Rifle Last Messages --------------- Critical hit (Burn: +37). K-01 Serf collects debris. ALERT: Suspicious intruders detected, dispatching Specialist reinforcements to area. K-01 Serf collects debris. Mak. Axe destroyed. K-01 Serf collects debris. T-07 Excavator is excavating. Y-45 Defender destroyed. S-10 Pest destroyed. Y-45 Defender destroyed. K-01 Serf collects debris. U-05 Engineer lays Concrete. K-01 Serf collects debris. U-05 Engineer lays Concrete. K-01 Serf collects debris. U-05 Engineer lays Concrete. R-06 Scavenger collects Lgt. Treads. U-05 Engineer lays Concrete. K-01 Serf collects debris. Map ----- +----------------------------------------------------+ | ???????????????????????????????????????????????? | | ???????????????????????????????????????????????? | | ???????????????????????????????????????????????? | | ???????????????????????????????????????????????? | | ???????????????????????????????????????????????? | | ???????????????????????????????????????????????? | | ???????????????????????????????????????????????? | | ???????????????????????????????????????????????? | | ???????????????????????????????????????????????? | | ???????????????????????????????????????????????? | | ???????????????????????????????????????????????? | | ???????????????????????????????????????????????? | | ???????????????????????????????????????????????? | | ???????????????????????????????????????????????? | | ???????????????????????????????????????????????? | | ???????????????????????????????????????????????? | | ?????????????????????????????????????H?????????? | | ???????????????????????????????????????????????? | | ???????????????????????????????????????????????? | | ???????????????????????###############?????????? | | ???????????????????????# #?????????? | | ???????????????????????# u #?????????? | | ????????????????????#### #?????????? | | ???????????????????## ;= #?????????? | | ????????????# ######;;;;[[ #?????????? | | ????? ws @%= #?????????? | | ??????# #######;;r;;;k#####+########+#????? | | ????????????????# %= ? | | ????????????????# u % ? | | ????????????????# ? | | ????????????????# ############+########+####?? | | ??????########### %# #??????????????????? | | ??????# # # #??????????????????? | | ??????# # + """ #??????????????????? | | ???# ## # # """ #??????????????????? | | ???# " ! + # """ #??????????????????? | | ?#"" # # #??????????????????? | | ?# ### # """ #??????????????????? | | # " = #?# # """ #??????????????????? | | ?#" = #?# # """ #??????????????????? | | ?#"" ""#####?# # #??????????????????? | | ?# " ????# # #??????????????????? | | ?## #???+#########??????????????????? | | ?? !!#???????????????????????????????? | | ?? " ! !! ???????????????????????????????? | | ?? " # #???????????????????????????????? | | ???" [# """ #???????????????????????????????? | | ???" %# """ #???????????????????????????????? | | ???# =+ """ #???????????????????????????????? | | ???# # #???????????????????????????????? | +----------------------------------------------------+ Best States ------------- Heat Dissipation 31 Energy Generation 15 Energy Capacity 250 Matter Stores 300 Matter Capacity 300 Sight Range 16 Terrain Scan Range 14 Terrain Scan Density 85 Armor Coverage 800 Evasion (%) 53 Item Schematics ----------------- None Robot Schematics ------------------ None Fabricated ------------ Nothing Alien Tech Used ----------------- None Achievements -------------- Everything Is Under Control Challenges ------------ None Game ------ Seed QuantumAuthchipScrap Manual? 0 Play Time 00:32:44 Cumulative 6.1 hours Start 2024.08.12 @ 22:40:20 End 2024.08.12 @ 23:19:18 Sessions 1 Manual Loads 0 Difficulty Rogue Special Mode None Game No. 8 Rogue 8 Adventurer 0 Explorer 0 Win Type - Total 0 Types 0/0/0/0/0/0/0/0/0 Lore% 2 Gallery% 9 Achievement% 9 Wizard Run 0 Options --------- Layout 1 ASCII 0 Keyboard 0 Movement Mouse Keybinds 0 Fullscreen 2 Font 32/SmallcapsGlow Map View 50x35 Zoom Use 0% Tactical HUD 0 Map Filters NONE Filters NONE Steam 1 RUN: ae087088-01e4-4dfa-b304-ccb1ae542c27